bitfinex-derivatives/quotes_SOLF0:USTF0_20240830
["timestamp","ask_amount","ask_price","bid_price","bid_amount"]
[1725028147397,0.05334989,138.32,138.3,3.6146]
[1725028147793,0.05334989,138.32,138.29,36.24422547]
[1725028147996,0.05334989,138.32,138.3,3.6147]
[1725028148907,0.05334989,138.32,138.31,3.6145]
[1725028150807,0.05334989,138.32,138.31,38.4245]
[1725028151302,3.6128,138.38,138.31,34.81]
[1725028151500,3.61382205,138.4,138.33,34.81]
[1725028151704,1.3498,138.41,138.35,3.6132]
[1725028151898,5.00482374,138.41,138.33,34.81]
[1725028152103,3.6125,138.39,138.33,34.81]
[1725028152294,0.0415466,138.37,138.35,0.05431672]
[1725028152697,3.6132,138.36,138.35,0.05431672]
[1725028152892,0.0415466,138.37,138.35,0.05431672]
[1725028155003,3.6546466,138.37,138.35,0.05431672]
[1725028156113,3.66080644,138.52,138.35,0.05431672]
[1725028156114,61.84308826,138.49,138.36,34.81]
[1725028156409,7.2187,138.51,138.35,0.05431672]
[1725028156410,34.81,138.5,138.38,34.81]
[1725028156609,3.6101,138.48,138.41,34.81]
[1725028156908,5.04171329,138.5,138.43,34.81]
[1725028157115,5.04171329,138.5,138.45,0.05439603]
[1725028158509,3.6099,138.49,138.45,0.05439603]
[1725028158899,5.04171329,138.5,138.45,0.05439603]
[1725028159206,39.85171329,138.5,138.45,0.05439603]
[1725028159407,36.2348,138.5,138.45,0.05439603]
[1725028159709,36.2348,138.5,138.39,42.59]
[1725028159710,39.79550405,138.5,138.39,38.35229035]
[1725028159904,7.76,138.49,138.39,38.35229035]
[1725028160103,3.6109,138.45,138.39,41.96449035]
[1725028160411,7.76,138.48,138.39,34.81]
[1725028160628,3.6113,138.44,138.39,34.81]
[1725028160913,0.04677418,138.45,138.42,0.04870053]
[1725028161910,3.6111,138.44,138.42,0.04870053]
[1725028162110,0.04677418,138.45,138.42,0.04870053]
[1725028162999,0.04677418,138.45,138.42,3.66010053]
[1725028163209,0.04677418,138.45,138.42,0.04870053]
[1725028163627,0.04677418,138.45,138.43,34.81]
[1725028163921,0.04677418,138.45,138.43,36.1652]
[1725028164219,0.04677418,138.45,138.44,3.6111]
[1725028164710,0.04677418,138.45,138.43,39.7765]
[1725028164919,0.04677418,138.45,138.43,36.1652]
[1725028165417,0.04677418,138.45,138.44,3.6111]
[1725028165716,11.43109031,138.52,138.43,37.5792]
[1725028165907,11.43109031,138.52,138.45,3.6107]
[1725028166100,11.43109031,138.52,138.46,3.6747011]
[1725028166606,3.6094,138.51,138.48,0.05165893]
[1725028167614,7.24227701,138.52,138.48,0.05165893]
[1725028167923,2.7243,138.55,138.48,0.05165893]
[1725028168237,28.9,138.58,138.49,34.81]
[1725028168406,7.76,138.56,138.52,0.05243651]
[1725028168610,15.06248788,138.56,138.52,0.05243651]
[1725028168814,11.45438788,138.56,138.52,0.05243651]
[1725028170009,3.69438788,138.56,138.52,0.05243651]
[1725028170211,7.76,138.56,138.52,0.05243651]
[1725028170416,11.41250877,138.56,138.52,0.05243651]
[1725028170713,3.65250877,138.56,138.52,0.05243651]
[1725028170911,63.71,138.58,138.52,0.05243651]
[1725028171113,3.6087,138.53,138.52,0.05243651]
[1725028171415,7.21375501,138.53,138.52,0.05243651]
[1725028172319,3.6086,138.54,138.52,0.05243651]
[1725028172511,7.76,138.56,138.52,0.05243651]
[1725028172713,11.35639249,138.56,138.52,0.05243651]
[1725028172911,3.59639249,138.56,138.52,0.05243651]
[1725028173220,36.66,138.58,138.52,0.05243651]
[1725028173525,3.6082,138.56,138.52,0.05243651]
[1725028173717,3.5769018,138.56,138.52,0.05243651]
[1725028173919,28.9,138.58,138.52,0.05243651]
[1725028174121,36.66,138.58,138.52,0.05243651]
[1725028174313,3.6081,138.56,138.52,0.05243651]
[1725028174513,7.30214291,138.56,138.52,0.05243651]
[1725028174815,3.6081,138.56,138.52,0.05243651]
[1725028175020,3.67527494,138.56,138.52,0.05243651]
[1725028175222,36.66,138.58,138.52,0.05243651]
[1725028175922,3.6086,138.54,138.52,0.05243651]
[1725028176122,3.56699815,138.56,138.52,0.05243651]
[1725028176421,3.6087,138.53,138.52,0.05243651]
[1725028177721,36.66,138.58,138.52,0.05243651]
[1725028178321,3.6086,138.54,138.52,0.05243651]
[1725028178525,3.57916699,138.55,138.52,0.05243651]
[1725028178728,71.47,138.58,138.52,0.05243651]
[1725028178911,3.6087,138.53,138.52,0.05243651]
[1725028182424,7.15203307,138.54,138.52,0.05243651]
[1725028182625,3.6086,138.54,138.52,0.05243651]
[1725028183029,3.6087,138.53,138.52,0.05243651]
[1725028195840,31.3487,138.53,138.52,0.05243651]
[1725028196045,27.74,138.53,138.47,1.3685]
[1725028196945,0.05474269,138.51,138.49,0.05117076]
[1725028197147,0.05474269,138.51,138.4,9.1797]
[1725028197148,27.79474269,138.51,138.4,9.1797]
[1725028197357,27.74,138.48,138.4,1.4197]
[1725028197657,3.53124669,138.48,138.4,1.4197]
[1725028197853,3.6111,138.44,138.4,1.4197]
[1725028198142,0.048086,138.43,138.41,0.04680209]
[1725028199640,3.659586,138.43,138.41,0.04680209]
[1725028199839,0.048086,138.43,138.41,0.04680209]
[1725028201347,7.24385736,138.42,138.41,0.04680209]
[1725028203149,35.548086,138.43,138.35,1.2985]
[1725028203352,27.74,138.4,138.31,27.74]
[1725028203550,27.74,138.4,138.31,36.41073089]
[1725028203551,3.6127,138.38,138.31,36.41073089]
[1725028203746,11.29727986,138.43,138.34,27.74]
[1725028203747,3.53727986,138.43,138.34,27.74]
[1725028203944,7.76,138.42,138.34,27.74]
[1725028204149,3.6124,138.39,138.37,0.04607522]
[1725028204349,0.05215641,138.4,138.37,0.04607522]
[1725028204553,39.12498304,138.4,138.37,0.04607522]
[1725028204763,31.3526,138.38,138.37,0.04607522]
[1725028204956,27.74,138.38,138.31,1.4007]
[1725028205158,27.74,138.36,138.27,29.1142]
[1725028205450,7.76,138.38,138.27,29.1142]
[1725028205451,7.76,138.38,138.29,27.74]
[1725028205844,3.66705464,138.35,138.32,0.04829083]
[1725028206456,0.05345464,138.35,138.32,0.04829083]
[1725028206752,0.05345464,138.35,138.32,27.78829083]
[1725028207056,0.05345464,138.35,138.32,31.40249083]
[1725028207754,0.05345464,138.35,138.33,1.3021]
[1725028208058,0.05345464,138.35,138.34,3.68873041]
[1725028208268,0.05345464,138.35,138.34,1.3046]
[1725028210360,3.66705464,138.35,138.32,0.04829083]
[1725028210559,0.05345464,138.35,138.32,0.04829083]
[1725028211555,0.05345464,138.35,138.32,3.66229083]
[1725028211750,0.05345464,138.35,138.33,27.74]
[1725028211962,29.1093,138.42,138.32,0.04829083]
[1725028211963,227.55620379,138.56,138.37,3.6128]
[1725028212260,61.89244686,138.49,138.4,27.74]
[1725028212656,3.6107,138.46,138.4,31.352]
[1725028212860,7.76,138.49,138.42,27.74]
[1725028213059,7.76,138.49,138.42,27.78841242]
[1725028213264,0.05237017,138.47,138.42,27.78841242]
[1725028213568,0.05237017,138.47,138.44,27.74]
[1725028213767,0.05237017,138.47,138.42,0.04841242]
[1725028214364,3.66267017,138.47,138.42,0.04841242]
[1725028214562,27.79237017,138.47,138.42,0.04841242]
[1725028214758,7.2666174,138.46,138.42,0.04841242]
[1725028216158,27.74,138.45,138.42,0.04841242]
[1725028216561,3.67876146,138.44,138.42,0.04841242]
[1725028216762,0.05237017,138.47,138.19,7.2348]
[1725028216763,35.5,138.43,138.19,7.2348]
[1725028217067,27.74,138.47,138.31,32.6509]
[1725028217068,3.6128,138.38,138.31,32.6509]
[1725028217267,27.74,138.42,138.33,27.74]
[1725028217564,7.76,138.43,138.35,27.74]
[1725028217757,0.04877901,138.4,138.38,0.0463285]
[1725028218461,3.6124,138.39,138.38,0.0463285]
[1725028219166,7.27118738,138.39,138.38,0.0463285]
[1725028220070,7.27118738,138.39,138.31,1.2964]
[1725028220071,34.7,138.39,138.31,1.2964]
[1725028220359,7.74,138.38,138.29,1.4185]
[1725028220562,7.74,138.38,138.29,2.7604]
[1725028220758,7.74,138.38,138.3,34.7]
[1725028220959,0.0463554,138.35,138.33,0.04717169]
[1725028224262,3.6137,138.34,138.33,0.04717169]
[1725028224864,0.0463554,138.35,138.33,0.04717169]
[1725028225367,3.6599554,138.35,138.33,0.04717169]
[1725028225563,0.0463554,138.35,138.33,0.04717169]
[1725028226468,0.0463554,138.35,138.33,3.66097169]
[1725028227261,34.7,138.44,138.33,0.04717169]
[1725028227458,46.05004734,138.44,138.34,34.7]
[1725028227667,46.05004734,138.44,138.35,2.7896]
[1725028228068,38.31004734,138.44,138.35,2.7896]
[1725028228265,0.04751861,138.41,138.38,0.05380064]
[1725028228460,0.04663316,138.41,138.39,34.7]
[1725028228672,3.6106,138.46,138.4,3.6119]
[1725028228865,3.6106,138.46,138.39,38.28764264]
[1725028228866,3.59270177,138.46,138.39,3.58764264]
[1725028229065,34.7,138.45,138.35,2.7896]
[1725028229368,34.7,138.43,138.35,2.7896]
[1725028229571,0.05230973,138.4,138.38,0.05503782]
[1725028230472,3.66450973,138.4,138.38,0.05503782]
[1725028230972,0.05230973,138.4,138.38,0.05503782]
[1725028231269,3.6124,138.39,138.38,0.05503782]
[1725028232067,0.05230973,138.4,138.38,0.05503782]
[1725028233066,0.05230973,138.4,138.38,3.66753782]
[1725028233465,0.05230973,138.4,138.38,0.05503782]
[1725028233668,0.05230973,138.4,138.38,3.72808088]
[1725028233866,0.05230973,138.4,138.38,0.05503782]
[1725028235275,3.66450973,138.4,138.38,0.05503782]
[1725028235470,0.05230973,138.4,138.38,0.05503782]
[1725028235969,7.22439425,138.39,138.38,0.05503782]
[1725028236164,34.7,138.39,138.31,4.0532]
[1725028236470,3.6135,138.35,138.31,1.3711]
[1725028237285,34.7,138.37,138.32,0.0525353]
[1725028237286,0.0504088,138.34,138.32,0.0525353]
[1725028238573,3.614,138.33,138.32,0.0525353]
[1725028238877,34.7,138.33,138.21,34.7]
[1725028239073,34.7,138.31,138.21,34.7]
[1725028239276,7.74,138.32,138.23,34.7]
[1725028239464,3.67224775,138.32,138.23,34.7]
[1725028239663,7.74,138.33,138.23,34.7]
[1725028239863,0.04623684,138.29,138.27,0.05255661]
[1725028240581,0.04623684,138.29,138.28,3.53378832]
[1725028241076,0.04623684,138.29,138.28,4.95648832]
[1725028241271,0.04623684,138.29,138.28,1.4227]
[1725028243166,0.04623684,138.29,138.28,5.01127819]
[1725028244270,0.04623684,138.29,138.28,8.62657819]
[1725028245277,0.04623684,138.29,138.28,5.01127819]
[1725028245482,0.04623684,138.29,138.27,0.05255661]
[1725028247273,0.04623684,138.29,138.27,27.81255661]
[1725028247474,3.60438318,138.35,138.28,1.3011]
[1725028247673,7.74,138.36,138.29,3.6148]
[1725028248280,11.3067848,138.36,138.29,3.6148]
[1725028248471,11.3067848,138.36,138.31,0.05055444]
[1725028248472,0.04637546,138.34,138.31,0.05055444]
[1725028248778,0.04637546,138.34,138.31,27.81055444]
[1725028248989,0.04637546,138.34,138.32,27.76]
[1725028249178,27.76,138.42,138.32,27.76]
[1725028249682,3.6121,138.4,138.34,3.6135]
[1725028249984,42.43,138.43,138.32,34.69]
[1725028250182,0.05172302,138.39,138.36,0.04759252]
[1725028250580,0.05172302,138.39,138.36,1.46609252]
[1725028251289,0.05172302,138.39,138.36,0.04759252]
[1725028252277,3.738913,138.39,138.36,0.04759252]
[1725028253381,3.6126,138.38,138.36,0.04759252]
[1725028253582,3.6126,138.38,138.33,3.60370234]
[1725028253583,34.69,138.38,138.28,36.0477]
[1725028253783,3.52595555,138.37,138.29,1.3152]
[1725028253987,34.69,138.36,138.29,1.3152]
[1725028254184,38.38072658,138.36,138.29,1.3152]
[1725028254383,41.99412658,138.36,138.29,4.9301]
[1725028254681,0.05374166,138.34,138.31,0.05501728]
[1725028256189,3.6141,138.33,138.31,0.05501728]
[1725028256389,0.05374166,138.34,138.31,0.05501728]
[1725028256984,34.69,138.33,138.31,0.05501728]
[1725028257186,3.6142,138.32,138.31,0.05501728]
[1725028257995,3.6142,138.32,138.23,34.69]
[1725028257996,3.6151,138.29,138.23,3.6164]
[1725028258488,34.69,138.31,138.21,36.0798]
[1725028258682,42.43,138.33,138.23,34.69]
[1725028258989,0.05157923,138.29,138.27,0.04993368]
[1725028259186,0.05157923,138.29,138.28,3.57680456]
[1725028259695,42.43,138.36,138.27,1.3476]
[1725028259696,3.6138,138.34,138.27,1.3476]
[1725028259991,7.74,138.36,138.27,36.0376]
[1725028260198,3.6135,138.35,138.27,36.0376]
[1725028260389,7.74,138.36,138.27,36.0376]
[1725028260801,0.0494367,138.33,138.3,0.05039425]
[1725028261190,15.18560038,138.52,138.27,36.0376]
[1725028261191,3.6127,138.38,138.33,3.6139]
[1725028261494,3.6127,138.38,138.34,3.70298517]
[1725028261900,3.65345295,138.4,138.34,3.70298517]
[1725028262104,7.74,138.41,138.34,3.6137]
[1725028262295,0.05349974,138.38,138.36,0.04920437]
[1725028264004,3.6129,138.37,138.36,0.04920437]
[1725028264193,34.74349974,138.38,138.28,1.3073]
[1725028264402,34.69,138.38,138.29,1.3187]
[1725028264605,34.69,138.36,138.29,1.3187]
[1725028264995,34.69,138.34,138.29,1.3187]
[1725028265196,0.04979929,138.33,138.3,0.04786031]
[1725028270113,34.73979929,138.33,138.3,0.04786031]
[1725028270724,38.3045,138.31,138.3,0.04786031]
[1725028270920,34.69,138.31,138.21,34.69]
[1725028271121,3.6155,138.28,138.22,3.6167]
[1725028271315,34.69,138.29,138.18,46.5159]
[1725028271510,34.69,138.29,138.19,1.30863802]
[1725028271712,34.69,138.27,138.18,4.0859]
[1725028271920,34.69,138.27,138.23,0.04789329]
[1725028271921,34.73637446,138.25,138.23,0.04789329]
[1725028272133,3.6163,138.24,138.23,0.04789329]
[1725028273222,42.04495051,138.25,138.23,0.04789329]
[1725028273416,7.35495051,138.25,138.23,0.04789329]
[1725028273615,3.73885051,138.25,138.23,0.04789329]
[1725028274313,34.73637446,138.25,138.23,0.04789329]
[1725028275012,38.38328671,138.25,138.23,0.04789329]
[1725028275417,3.6163,138.24,138.23,0.04789329]
[1725028276118,38.38328671,138.25,138.23,0.04789329]
[1725028276326,0.04637446,138.25,138.23,0.04789329]
[1725028279020,3.66237446,138.25,138.23,0.04789329]
[1725028279524,3.6163,138.24,138.23,0.04789329]
[1725028280414,34.73637446,138.25,138.14,1.3419]
[1725028280732,34.69,138.21,138.14,2.6919]
[1725028280916,34.69,138.21,138.15,3.67792197]
[1725028281421,0.05381032,138.19,138.17,0.05143673]
[1725028282725,34.69,138.25,138.17,0.05143673]
[1725028283115,38.3062,138.25,138.19,3.6175]
[1725028283313,38.3062,138.25,138.15,3.59143729]
[1725028283624,38.3062,138.25,138.14,37.3819]
[1725028283821,0.05340188,138.21,138.18,0.04829215]
[1725028284316,0.05340188,138.21,138.2,3.6174]
[1725028284517,0.05340188,138.21,138.18,0.04829215]
[1725028285023,0.05340188,138.21,138.19,3.6175]
[1725028285232,0.05340188,138.21,138.18,0.04829215]
[1725028285824,3.67060188,138.21,138.18,0.04829215]
[1725028286520,0.05340188,138.21,138.18,0.04829215]
[1725028286928,3.6175,138.2,138.18,0.04829215]
[1725028287523,3.6176,138.19,138.18,0.04829215]
[1725028287827,38.3076,138.19,138.18,0.04829215]
[1725028288521,34.69,138.19,138.18,0.04829215]
[1725028289827,38.3076,138.19,138.18,0.04829215]
[1725028290226,34.69,138.19,138.18,0.04829215]
[1725028292427,38.3076,138.19,138.18,0.04829215]
[1725028292631,38.3076,138.19,138.1,6.39676612]
[1725028292632,38.25207589,138.19,138.1,6.39676612]
[1725028292832,34.69,138.15,138.1,1.3712]
[1725028293043,34.69,138.15,138.06,1.3801]
[1725028293226,34.69,138.11,138.06,2.7513]
[1725028293442,34.69,138.11,138.02,1.3522]
[1725028293628,0.04642629,138.08,138.05,0.04682331]
[1725028295238,0.04642629,138.08,138.07,3.6208]
[1725028296933,0.04642629,138.08,138.05,0.04682331]
[1725028297337,0.04642629,138.08,138.05,3.66792331]
[1725028297543,0.04642629,138.08,138.05,0.04682331]
[1725028297934,0.04642629,138.08,138.06,3.6208]
[1725028298138,0.04642629,138.08,138.05,0.04682331]
[1725028298535,0.04642629,138.08,138.06,3.621]
[1725028298939,0.04642629,138.08,138.05,0.04682331]
[1725028299334,0.04642629,138.08,138.07,3.6208]
[1725028300536,38.3092,138.13,138.09,3.62]
[1725028300738,34.69,138.13,138.03,36.019]
[1725028300938,3.6196,138.12,138.03,36.019]
[1725028301343,34.69,138.13,138.03,36.019]
[1725028301644,0.04687359,138.09,138.07,3.67609796]
[1725028302150,0.04687359,138.09,138.07,0.05559796]
[1725028303445,0.04687359,138.09,138.07,3.67639796]
[1725028304035,34.73687359,138.09,138.07,0.05559796]
[1725028304751,0.04687359,138.09,138.07,0.05559796]
[1725028304946,0.04687359,138.09,138.08,3.6205]
[1725028305244,0.04687359,138.09,138.07,0.05559796]
[1725028305651,42.43,138.14,138.07,0.05559796]
[1725028306545,34.69,138.14,138.07,0.05559796]
[1725028306741,0.05447188,138.12,138.07,0.05559796]
[1725028308051,0.05447188,138.12,138.11,3.6197]
[1725028308243,0.05447188,138.12,138.11,7.2517504]
[1725028308548,0.05447188,138.12,138.11,3.6197]
[1725028308947,0.05447188,138.12,138.11,7.23151571]
[1725028309250,0.05447188,138.12,138.11,3.6197]
[1725028309459,0.05447188,138.12,138.11,7.31476229]
[1725028309745,0.05447188,138.12,138.11,3.6197]
[1725028310143,0.05447188,138.12,138.11,7.25902328]
[1725028310441,63.63,138.18,138.13,3.6192]
[1725028310752,2.7795,138.22,138.13,3.6192]
[1725028310753,34.69,138.24,138.13,34.69]
[1725028310942,3.6167,138.23,138.14,1.3215]
[1725028311146,3.6167,138.23,138.18,3.6176]
[1725028311547,0.04807038,138.22,138.19,0.04677126]
[1725028311756,0.04807038,138.22,138.19,3.66427126]
[1725028312346,0.04807038,138.22,138.21,3.6171]
[1725028312547,3.56523203,138.28,138.17,34.69]
[1725028312950,3.56523203,138.28,138.22,3.6167]
[1725028312951,3.6157,138.27,138.22,3.6167]
[1725028313151,3.6157,138.27,138.22,7.23944744]
[1725028313353,7.72,138.3,138.22,3.62274744]
[1725028313676,0.04671235,138.27,138.25,0.05295055]
[1725028313847,0.04617356,138.27,138.25,0.05109585]
[1725028314350,0.04617356,138.27,138.25,3.72810312]
[1725028314554,0.04617356,138.27,138.26,3.6158]
[1725028315952,38.3047,138.31,138.26,3.6158]
[1725028316154,3.6143,138.32,138.27,3.6155]
[1725028316752,3.6145,138.31,138.27,3.6155]
[1725028317061,0.05400714,138.3,138.28,0.04818907]
[1725028318150,0.05400714,138.3,138.28,3.66328907]
[1725028318557,0.05400714,138.3,138.28,0.04818907]
[1725028321462,38.305,138.29,138.28,0.04818907]
[1725028322158,34.69,138.29,138.22,3.6521042]
[1725028322465,34.69,138.29,138.21,1.366]
[1725028322760,7.72,138.31,138.15,36.0894]
[1725028322761,34.69,138.25,138.15,36.0894]
[1725028322967,34.69,138.24,138.16,2.6737]
[1725028323355,0.05173741,138.21,138.19,0.04570136]
[1725028324753,38.3074,138.2,138.19,0.04570136]
[1725028325253,34.69,138.2,138.11,2.6729]
[1725028325457,1.3962,138.22,138.11,2.6729]
[1725028325458,34.69,138.18,138.11,2.6729]
[1725028325677,34.69,138.18,138.12,7.27841338]
[1725028325863,3.6177,138.19,138.12,3.6194]
[1725028326359,0.04817405,138.17,138.14,0.04915834]
[1725028328557,3.6184,138.16,138.14,0.04915834]
[1725028328762,3.59505059,138.17,138.14,0.04915834]
[1725028329157,7.21335059,138.17,138.14,0.04915834]
[1725028329465,34.69,138.16,138.14,0.04915834]
[1725028329661,3.6194,138.13,138.08,3.66304299]
[1725028329861,38.3094,138.13,138.05,4.0248]
[1725028330363,38.3094,138.13,138.07,3.6207]
[1725028330757,0.05259109,138.11,138.09,0.04687226]
[1725028332570,34.74259109,138.11,138.09,0.04687226]
[1725028332869,3.62,138.1,138.09,0.04687226]
[1725028333569,38.36239109,138.11,138.09,0.04687226]
[1725028334976,3.62,138.1,138.09,0.04687226]
[1725028335376,38.36249109,138.11,138.09,0.04687226]
[1725028335777,34.74259109,138.11,138.09,0.04687226]
[1725028336175,3.62,138.1,138.09,0.04687226]
[1725028336367,42.46259109,138.11,138.03,3.61793076]
[1725028336671,16.30034641,138.12,138.02,36.0422]
[1725028336872,16.30034641,138.12,138.03,3.6217]
[1725028336873,34.69,138.11,138.03,3.6217]
[1725028337079,34.69,138.11,138.02,4.88867845]
[1725028337281,0.05527421,138.08,138.05,0.05444285]
[1725028339569,34.74527421,138.08,138.05,0.05444285]
[1725028339971,38.36577421,138.08,138.05,0.05444285]
[1725028340482,0.05527421,138.08,138.05,0.05444285]
[1725028342174,34.69,138.07,138.05,0.05444285]
[1725028342684,3.621,138.06,138.05,0.05444285]
[1725028342881,34.69,138.07,138.05,0.05444285]
[1725028343674,38.3108,138.07,138.05,0.05444285]
[1725028344074,34.69,138.07,138.05,0.05444285]
[1725028345074,3.621,138.06,138.05,0.05444285]
[1725028345993,3.6214,138.05,138.0,3.6461377]
[1725028346177,34.69,138.05,138.0,3.6461377]
[1725028346489,1.3444,138.09,137.98,1.3474]
[1725028346676,3.6213,138.05,137.99,3.6228]
[1725028346883,34.69,138.06,137.98,1.3474]
[1725028347089,0.04654204,138.03,138.01,0.04785094]
[1725028347793,3.66834204,138.03,138.01,0.04785094]
[1725028348091,0.04654204,138.03,138.01,0.04785094]
[1725028348493,3.66834204,138.03,138.01,0.04785094]
[1725028349689,0.04654204,138.03,138.01,0.04785094]
[1725028350695,0.04654204,138.03,138.02,3.6221]
[1725028351006,27.82,138.11,138.01,27.86785094]
[1725028351200,31.38993282,138.11,138.01,27.82]
[1725028352003,0.05225587,138.07,138.05,0.04695524]
[1725028353294,0.05225587,138.07,138.05,3.66805524]
[1725028353700,0.05225587,138.07,138.06,3.621]
[1725028353899,27.82,138.12,138.05,1.46105524]
[1725028354107,34.73,138.15,138.05,37.49885524]
[1725028354404,34.73,138.15,138.05,37.4519]
[1725028354597,34.73,138.15,138.05,2.7219]
[1725028354794,34.73,138.13,138.05,2.7219]
[1725028355000,0.04881992,138.1,138.08,0.05466699]
[1725028358699,3.66891992,138.1,138.08,0.05466699]
[1725028359301,3.6202,138.09,138.08,0.05466699]
[1725028359510,0.04881992,138.1,138.08,0.05466699]
[1725028359903,38.3502,138.09,138.08,0.05466699]
[1725028361405,38.3502,138.09,138.02,1.3777]
[1725028361615,3.621,138.07,138.01,3.69603823]
[1725028361813,3.621,138.07,138.01,3.6221]
[1725028362009,3.6212,138.06,138.01,3.6221]
[1725028362203,34.73,138.07,138.0,3.65041707]
[1725028362399,34.73,138.07,138.0,3.6225]
[1725028362600,0.04591535,138.05,138.02,0.04612503]
[1725028363402,38.32178591,138.05,138.02,0.04612503]
[1725028363608,3.6218,138.03,138.02,0.04612503]
[1725028364012,38.32178591,138.05,138.02,0.04612503]
[1725028364213,3.6216,138.04,138.02,0.04612503]
[1725028365107,0.04591535,138.05,138.02,0.04612503]
[1725028365818,34.73,138.04,138.02,0.04612503]
[1725028367307,3.6218,138.03,138.02,0.04612503]
[1725028367817,34.73,138.04,138.02,0.04612503]
[1725028368010,38.3516,138.04,138.02,0.04612503]
[1725028369211,3.6218,138.03,138.02,0.04612503]
[1725028369414,34.73,138.04,138.02,0.04612503]
[1725028370708,3.6218,138.03,138.02,0.04612503]
[1725028371514,34.73,138.04,138.02,0.04612503]
[1725028372021,38.3517,138.04,138.02,0.04612503]
[1725028372315,34.73,138.04,138.02,0.04612503]
[1725028372513,3.6218,138.03,138.02,0.04612503]
[1725028373611,34.73,138.03,137.96,1.3657]
[1725028373814,34.73,137.99,137.96,1.3657]
[1725028374215,38.3529,137.99,137.96,1.3657]
[1725028374515,38.40751682,137.99,137.96,1.41615651]
[1725028374916,0.05461682,137.99,137.96,1.41615651]
[1725028375912,11.28463287,138.05,137.97,3.6233]
[1725028375913,3.6222,138.02,137.97,3.6233]
[1725028376214,3.6222,138.02,137.98,3.68395651]
[1725028376411,3.6222,138.02,137.97,3.6233]
[1725028376412,35.52,138.05,137.96,29.1857]
[1725028376818,0.04789633,138.02,137.99,0.04856968]
[1725028377117,3.67009633,138.02,137.99,0.04856968]
[1725028378324,3.6224,138.01,137.99,0.04856968]
[1725028378724,3.67009633,138.02,137.99,0.04856968]
[1725028379107,0.04789633,138.02,137.99,3.67136968]
[1725028379411,3.67009633,138.02,137.99,0.04856968]
[1725028380411,0.04789633,138.02,137.99,0.04856968]
[1725028381223,27.86789633,138.02,137.99,0.04856968]
[1725028381513,3.6226,138.0,137.99,0.04856968]
[1725028381715,31.4426,138.0,137.99,0.04856968]
[1725028381912,27.82,138.0,137.96,1.3657]
[1725028382720,27.82,138.0,137.92,2.7183]
[1725028383041,9.1225,138.03,137.95,0.05176747]
[1725028383042,0.05059456,137.97,137.95,0.05176747]
[1725028383210,27.82,137.96,137.92,1.2881]
[1725028383723,3.6244,137.94,137.92,1.2881]
[1725028383921,27.82,137.94,137.89,1.3386]
[1725028384321,0.04857342,137.93,137.9,0.04800573]
[1725028384826,0.04857342,137.93,137.9,3.67300573]
[1725028385619,0.04857342,137.93,137.9,0.04800573]
[1725028386315,7.7,137.97,137.91,27.82]
[1725028386618,27.82,137.96,137.9,0.04800573]
[1725028387315,0.04575583,137.94,137.9,0.04800573]
[1725028387927,3.6246,137.93,137.9,0.04800573]
[1725028388622,27.82,137.93,137.9,0.04800573]
[1725028389122,31.445,137.91,137.9,0.04800573]
[1725028389920,3.625,137.91,137.9,0.04800573]
[1725028390127,3.59282414,137.93,137.9,0.04800573]
[1725028390426,27.82,137.92,137.9,0.04800573]
[1725028390628,31.445,137.91,137.9,0.04800573]
[1725028390822,27.82,137.91,137.84,1.3273]
[1725028391225,27.82,137.89,137.81,30.5607]
[1725028391528,27.82,137.87,137.81,1.355]
[1725028391721,3.627,137.84,137.83,0.04786232]
[1725028391914,27.87055306,137.85,137.83,0.04786232]
[1725028392124,0.05055306,137.85,137.83,0.04786232]
[1725028392723,39.13413572,137.92,137.83,0.04786232]
[1725028392920,27.82,137.92,137.83,1.4183]
[1725028393127,27.82,137.94,137.84,27.82]
[1725028393327,27.82,137.94,137.83,1.4183]
[1725028393328,27.82,137.92,137.83,1.4183]
[1725028393516,27.82,137.92,137.85,3.6265]
[1725028393730,0.05156732,137.9,137.87,0.04858651]
[1725028393917,0.05156732,137.9,137.88,3.6257]
[1725028394420,0.05156732,137.9,137.87,0.04858651]
[1725028395026,588.0,138.0,137.87,29.28478651]